bitfinex-derivatives/quotes_SOLF0:USTF0_20250816
["timestamp","ask_amount","ask_price","bid_price","bid_amount"]
[1755361842351,7.08191202,188.58,188.5,130.38]
[1755361842553,3.0,188.57,188.5,130.38]
[1755361843046,5.3011,188.51,188.5,130.38]
[1755361843251,8.3011,188.51,188.5,133.39]
[1755361846652,8.3011,188.51,188.5,130.38]
[1755361846851,3.0,188.48,188.44,3.01]
[1755361847053,3.0,188.48,188.45,130.38]
[1755361847251,5.3023,188.47,188.45,130.38]
[1755361847552,3.0,188.46,188.45,133.39]
[1755361848150,13.12852951,188.58,188.45,133.39]
[1755361848353,4.07190231,188.57,188.46,5.3024]
[1755361848556,3.0,188.56,188.47,3.01]
[1755361849355,5.3016,188.5,188.47,3.01]
[1755361849553,2.95,188.51,188.48,3.08]
[1755361850049,2.95,188.57,188.48,3.08]
[1755361851557,2.95,188.57,188.47,2.52962951]
[1755361851848,2.95,188.54,188.42,3.08]
[1755361852247,8.2532,188.44,188.42,3.08]
[1755361852442,2.95,188.44,188.43,3.08]
[1755361852859,2.95,188.54,188.43,3.08]
[1755361853157,2.95,188.54,188.46,3.08]
[1755361853956,5.3023,188.47,188.46,3.08]
[1755361854255,2.95,188.47,188.45,2.52962951]
[1755361854450,2.95,188.46,188.45,5.60962951]
[1755361854655,5.3023,188.47,188.46,3.08]
[1755361856053,8.2523,188.47,188.46,3.08]
[1755361857257,2.95,188.55,188.46,3.08]
[1755361857956,5.3019,188.49,188.46,3.08]
[1755361858157,2.95,188.58,188.46,3.08]
[1755361858358,4.06912598,188.57,188.46,3.08]
[1755361858557,8.2517,188.5,188.46,5.3025]
[1755361858761,8.2517,188.5,188.47,3.08]
[1755361859555,2.52962951,188.59,188.48,3.08]
[1755361859858,2.95,188.51,188.48,3.08]
[1755361860156,5.3016,188.5,188.48,3.08]
[1755361860554,5.3012,188.51,188.48,5.60962951]
[1755361860764,2.95,188.58,188.49,3.08]
[1755361861057,5.3026,188.46,188.45,5.60962951]
[1755361861653,5.3032,188.44,188.43,3.08]
[1755361861852,10.6004,188.55,188.43,3.08]
[1755361862061,2.95,188.45,188.44,3.08]
[1755361863356,8.2531,188.45,188.44,3.08]
[1755361863959,5.3027,188.46,188.44,3.08]
[1755361864154,8.2527,188.46,188.44,3.08]
[1755361864355,8.2527,188.46,188.45,3.08]
[1755361866054,2.95,188.46,188.42,2.52962951]
[1755361866261,2.95,188.54,188.43,3.08]
[1755361866559,2.95,188.52,188.43,3.08]
[1755361868062,5.3028,188.46,188.43,3.08]
[1755361868263,2.95,188.45,188.43,3.08]
[1755361868662,2.95,188.45,188.43,8.3834]
[1755361868862,5.3028,188.46,188.44,3.08]
[1755361869068,8.2528,188.46,188.44,3.08]
[1755361869361,2.95,188.55,188.45,2.52962951]
[1755361869564,2.95,188.55,188.46,3.08]
[1755361870463,4.07739271,188.54,188.46,3.08]
[1755361870663,2.95,188.57,188.46,3.08]
[1755361870966,5.3026,188.47,188.45,2.52962951]
[1755361871155,2.95,188.46,188.45,5.60962951]
[1755361871860,2.52962951,188.56,188.46,3.08]
[1755361871861,2.95,188.48,188.46,3.08]
[1755361872058,8.2519,188.49,188.46,3.08]
[1755361872564,2.95,188.48,188.46,3.08]
[1755361874566,2.95,188.48,188.47,3.08]
[1755361874567,8.252,188.48,188.47,3.08]
[1755361874960,2.95,188.55,188.45,2.52962951]
[1755361875156,2.95,188.53,188.45,5.60962951]
[1755361875362,4.08127268,188.52,188.45,5.60962951]
[1755361875567,2.95,188.51,188.45,5.60962951]
[1755361875966,5.3025,188.47,188.45,5.60962951]
[1755361876168,8.2525,188.47,188.46,3.08]
[1755361880170,8.2525,188.47,188.43,5.3031]
[1755361880171,3.11,188.54,188.43,3.12]
[1755361880466,3.11,188.52,188.43,3.12]
[1755361880671,3.11,188.5,188.43,3.12]
[1755361880970,3.11,188.48,188.42,2.52962951]
[1755361881173,3.11,188.48,188.43,3.12]
[1755361881670,3.11,188.48,188.44,3.12]
[1755361883773,3.11,188.48,188.42,10.95322951]
[1755361884071,3.11,188.48,188.44,3.12]
[1755361887779,4.46237051,188.53,188.42,7.83322951]
[1755361887982,3.11,188.51,188.43,3.12]
[1755361888184,3.11,188.49,188.43,3.12]
[1755361888382,3.11,188.47,188.44,3.12]
[1755361888785,2.52962951,188.56,188.43,3.12]
[1755361888786,7.57237051,188.52,188.43,3.12]
[1755361889081,3.11,188.5,188.43,3.12]
[1755361889275,3.11,188.48,188.43,3.12]
[1755361889475,4.10296555,188.47,188.43,3.12]
[1755361889677,3.11,188.46,188.43,3.12]
[1755361890287,8.4132,188.44,188.43,3.12]
[1755361890790,3.11,188.42,188.4,3.12]
[1755361890987,3.11,188.41,188.39,2.52962951]
[1755361891486,3.11,188.41,188.4,3.12]
[1755361892186,8.414,188.41,188.4,3.12]
[1755361892986,5.3037,188.42,188.4,3.12]
[1755361893181,3.11,188.51,188.4,3.12]
[1755361893384,3.11,188.49,188.4,3.12]
[1755361893584,4.7846024,188.48,188.4,3.12]
[1755361893790,3.11,188.47,188.4,3.12]
[1755361894787,3.11,188.45,188.4,3.12]
[1755361896592,3.11,188.51,188.41,3.12]
[1755361896783,3.11,188.49,188.41,3.12]
[1755361896987,4.7818548,188.48,188.41,3.12]
[1755361897190,3.11,188.47,188.41,3.12]
[1755361897789,3.11,188.46,188.42,3.12]
[1755361897986,3.11,188.45,188.42,3.12]
[1755361898188,3.11,188.44,188.42,3.12]
[1755361899294,2.52962951,188.52,188.4,5.3041]
[1755361899492,3.11,188.43,188.39,2.52962951]
[1755361899791,3.11,188.42,188.39,2.52962951]
[1755361899991,3.11,188.41,188.4,3.12]
[1755361900183,2.52962951,188.52,188.4,3.12]
[1755361900384,6.10656499,188.51,188.39,7.83412951]
[1755361900582,3.11,188.49,188.4,3.12]
[1755361900792,3.11,188.47,188.4,3.12]
[1755361901892,3.11,188.47,188.39,2.52962951]
[1755361902290,3.11,188.41,188.39,3.12]
[1755361902994,3.11,188.4,188.39,3.12]
[1755361903194,2.52962951,188.49,188.39,3.12]
[1755361903395,3.11,188.47,188.39,3.12]
[1755361905097,8.4133,188.44,188.4,3.12]
[1755361905492,3.11,188.43,188.4,3.12]
[1755361905694,8.4134,188.43,188.4,3.12]
[1755361906500,5.3032,188.44,188.4,3.12]
[1755361906696,4.4441159,188.5,188.4,3.12]
[1755361906895,3.11,188.43,188.4,3.12]
[1755361907096,4.4441159,188.5,188.4,3.12]
[1755361907291,10.20599373,188.49,188.4,3.12]
[1755361907495,3.11,188.45,188.4,3.12]
[1755361907995,8.4134,188.43,188.4,3.12]
[1755361908301,4.4441159,188.5,188.41,3.12]
[1755361908502,3.11,188.44,188.41,3.12]
[1755361908804,3.11,188.44,188.41,8.4239]
[1755361909102,3.11,188.44,188.42,3.01]
[1755361909500,5.303,188.45,188.42,3.01]
[1755361909803,4.4441159,188.51,188.4,3.01]
[1755361910105,5.62962951,188.49,188.37,137.61760005]
[1755361910306,3.1,188.47,188.38,3.01]
[1755361910607,3.1,188.45,188.38,3.01]
[1755361911102,6.97374541,188.49,188.37,93.61760005]
[1755361911297,13.30439981,188.48,188.37,3.01]
[1755361911501,3.1,188.46,188.37,3.01]
[1755361911700,4.4441159,188.48,188.37,3.01]
[1755361911701,3.1,188.44,188.37,3.01]
[1755361912902,3.1,188.44,188.38,5.3047]
[1755361913102,3.1,188.43,188.39,5.53962951]
[1755361913310,3.1,188.49,188.4,3.01]
[1755361913608,4.4441159,188.5,188.4,3.01]
[1755361913609,3.1,188.47,188.4,3.01]
[1755361913904,3.1,188.45,188.41,3.01]
[1755361914110,3.1,188.44,188.41,3.01]
[1755361914809,3.1,188.44,188.41,8.3139]
[1755361915107,3.1,188.44,188.41,3.01]
[1755361915810,4.4441159,188.5,188.39,2.52962951]
[1755361915811,3.1,188.49,188.4,3.01]
[1755361916011,3.1,188.47,188.4,3.01]
[1755361916207,3.1,188.45,188.4,3.01]
[1755361916412,3.1,188.45,188.39,5.53962951]
[1755361916609,3.1,188.45,188.39,3.01]
[1755361916912,3.1,188.43,188.39,3.01]
[1755361917512,3.1,188.43,188.37,3.01]
[1755361918714,5.3044,188.4,188.37,3.01]
[1755361918909,3.1,188.41,188.37,3.01]
[1755361919114,5.3037,188.42,188.38,5.3046]
[1755361919316,5.3037,188.42,188.39,3.01]
[1755361919514,8.4037,188.42,188.39,3.01]
[1755361919713,3.1,188.41,188.39,3.01]
[1755361920114,8.404,188.41,188.4,3.01]
[1755361920311,3.1,188.48,188.4,3.01]
[1755361920518,3.1,188.46,188.4,3.01]
[1755361920813,5.3037,188.43,188.4,3.01]
[1755361921014,8.4037,188.43,188.4,3.01]
[1755361921210,5.3032,188.44,188.41,3.01]
[1755361921416,3.1,188.45,188.41,3.01]
[1755361921810,8.4036,188.43,188.41,3.01]
[1755361922413,8.4036,188.43,188.39,7.83402951]
[1755361922612,8.4036,188.43,188.42,3.01]
[1755361926719,3.1,188.43,188.4,3.01]
[1755361926913,3.1,188.43,188.41,3.01]
[1755361927110,4.4441159,188.49,188.41,3.01]
[1755361927315,3.1,188.44,188.41,3.01]
[1755361927819,4.4441159,188.49,188.41,3.01]
[1755361928018,3.1,188.43,188.41,3.01]
[1755361928517,3.1,188.43,188.42,3.01]
[1755361928720,4.4441159,188.49,188.41,3.01]
[1755361928920,3.1,188.47,188.41,3.01]
[1755361929121,3.1,188.45,188.42,3.01]
[1755361929616,5.3037,188.43,188.42,3.01]
[1755361929923,3.1,188.45,188.42,3.01]
[1755361930121,8.4032,188.44,188.4,5.3042]
[1755361930321,8.4032,188.44,188.43,3.01]
[1755361931523,3.1,188.44,188.39,7.83412951]
[1755361931716,3.1,188.44,188.41,3.01]
[1755361932223,5.3037,188.42,188.41,3.01]
[1755361932428,8.4037,188.42,188.41,3.01]
[1755361932720,3.1,188.48,188.39,2.52962951]
[1755361932917,3.1,188.46,188.38,3.01]
[1755361933111,3.1,188.44,188.36,132.84962951]
[1755361933312,3.1,188.42,188.37,3.01]
[1755361933721,5.3044,188.4,188.37,3.01]
[1755361933920,3.1,188.39,188.37,3.01]
[1755361934321,8.4045,188.39,188.37,3.01]
[1755361934622,8.4045,188.39,188.36,138.15492951]
[1755361934823,3.1,188.38,188.37,3.01]
[1755361935220,8.4048,188.38,188.37,3.01]
[1755361937627,8.4051,188.37,188.36,132.84962951]
[1755361937824,3.1,188.37,188.33,5.53962951]
[1755361938022,3.1,188.37,188.34,3.01]
[1755361939527,3.1,188.37,188.33,130.28]
[1755361939928,3.1,188.37,188.33,133.37]
[1755361941429,3.1,188.37,188.33,130.28]
[1755361941629,3.1,188.37,188.33,133.37]
[1755361942134,3.1,188.37,188.33,130.28]
[1755361943133,3.1,188.37,188.3,130.28]
[1755361944423,4.16426487,188.36,188.3,130.28]
[1755361944733,7.11402061,188.35,188.3,130.28]
[1755361944932,4.16343416,188.34,188.26,130.28]
[1755361945235,5.3079,188.27,188.26,130.28]
[1755361945426,8.2579,188.27,188.26,133.37]
[1755361946132,5.3083,188.26,188.23,2.52962951]
[1755361946436,4.4441159,188.36,188.23,5.61962951]
[1755361946437,2.95,188.24,188.23,5.61962951]
[1755361946828,2.95,188.25,188.24,3.09]
[1755361947231,2.52962951,188.34,188.22,130.28]
[1755361947431,2.95,188.24,188.23,3.09]
[1755361948128,2.95,188.27,188.23,3.09]
[1755361948324,2.52962951,188.34,188.23,3.09]
[1755361948531,4.18644696,188.33,188.21,130.28]
[1755361948732,2.95,188.32,188.24,3.09]
[1755361949233,2.95,188.24,188.23,5.61962951]
[1755361949934,2.95,188.24,188.23,3.09]
[1755361950136,8.2587,188.24,188.23,3.09]
[1755361950834,5.3091,188.23,188.08,10.6262]
[1755361951033,2.95,188.12,187.98,2.52962951]
[1755361951239,2.95,188.12,187.99,3.09]
[1755361951433,2.95,188.12,188.01,2.52962951]
[1755361951634,2.95,188.12,188.02,5.3147]
[1755361951832,2.95,188.12,188.03,3.09]
[1755361952033,2.95,188.12,188.04,2.52962951]
[1755361952334,2.95,188.12,188.05,3.09]
[1755361952733,7.3941159,188.24,188.11,3.09]
[1755361953032,2.95,188.22,188.11,3.09]
[1755361953235,2.95,188.17,187.98,3.09]
[1755361953435,2.95,188.14,188.03,3.09]
[1755361953637,2.95,188.12,188.03,3.09]
[1755361953832,2.95,188.1,188.02,2.52962951]
[1755361954037,2.95,188.1,188.03,3.09]
[1755361954235,2.95,188.08,188.03,3.09]
[1755361954440,2.95,188.06,188.0,3.09]
[1755361954639,1.32845255,188.05,187.96,2.52962951]
[1755361954842,2.95,188.03,188.01,3.09]
[1755361955038,2.95,188.11,188.02,3.09]
[1755361955344,2.95,188.09,188.03,3.09]
[1755361955546,4.27858784,188.08,188.03,3.09]
[1755361955840,4.27858784,188.07,187.94,0.92542116]
[1755361956039,2.95,188.05,188.0,2.52962951]
[1755361956339,4.27858784,188.04,188.0,2.52962951]
[1755361956548,1.32858784,188.03,188.01,3.09]
[1755361956741,2.95,188.09,188.02,2.52962951]
[1755361957043,1.32851704,188.08,188.06,3.09]
[1755361957250,6.93202607,188.07,188.0,3.09]
[1755361957437,6.93202607,188.06,188.03,3.09]
[1755361957635,1.32851704,188.05,188.03,3.09]
[1755361957838,1.32851704,188.04,188.03,3.09]
[1755361958040,1.32851704,188.04,188.03,10.93432951]
[1755361958345,1.32851704,188.04,188.03,5.61962951]
[1755361958545,2.95,188.09,188.04,3.09]
[1755361958750,4.27840291,188.08,188.04,3.09]
[1755361958941,2.95,188.08,188.04,3.09]
[1755361959340,1.32840291,188.07,188.04,3.09]
[1755361959542,2.95,188.08,188.04,3.09]
[1755361959742,1.32840255,188.07,188.04,3.09]
[1755361960042,5.313,188.09,188.03,7.84422951]
[1755361960244,4.2784027,188.08,188.04,3.09]
[1755361960546,1.3284027,188.07,188.04,3.09]
[1755361960747,1.3284027,188.06,188.04,3.09]
[1755361960949,2.95,188.08,188.04,3.09]
[1755361961148,1.32840255,188.07,188.04,3.09]
[1755361961344,1.32840255,188.06,188.04,3.09]
[1755361961545,2.95,188.08,188.04,3.09]
[1755361961849,1.32844415,188.07,188.04,3.09]
[1755361962048,1.32844415,188.06,188.04,3.09]
[1755361962243,1.32840276,188.05,188.03,7.84422951]
[1755361962447,2.95,188.07,188.05,3.09]
[1755361962651,1.32840276,188.06,188.03,7.84422951]
[1755361962844,356.84,188.18,187.94,44.92542116]
[1755361962845,4.27840276,188.05,188.0,2.52962951]
[1755361963053,1.32840276,188.04,188.0,2.52962951]
[1755361963243,5.3153,188.01,187.98,2.52962951]
[1755361963437,5.3153,188.01,188.0,3.09]
[1755361963438,2.95,188.01,188.0,3.09]
[1755361963647,4.27864768,188.01,188.0,3.09]
[1755361963950,1.32864768,188.01,188.0,3.09]
[1755361964646,4.27864768,188.01,187.98,3.09]
[1755361964847,1.32864768,188.0,187.96,3.09]
[1755361965148,1.32864768,187.99,187.96,3.09]
[1755361965350,8.2653,188.01,187.96,3.09]
[1755361965548,1.32873106,188.0,187.96,3.09]
[1755361965750,8.2653,188.01,187.96,3.09]
[1755361965944,1.32873106,188.0,187.96,3.09]
[1755361966151,2.95,188.01,187.96,8.4065]
[1755361966345,1.32873106,188.0,187.98,2.52962951]
[1755361966552,2.95,188.06,187.99,3.09]
[1755361966747,1.32855956,188.05,188.02,3.09]
[1755361967045,1.32855956,188.04,188.02,3.09]
[1755361967252,8.2633,188.08,188.03,5.3147]
[1755361967448,2.95,188.05,188.02,3.09]
[1755361967750,2.95,188.03,187.97,3.09]
[1755361967944,2.95,188.0,187.97,3.09]
[1755361968148,2.95,188.0,187.99,3.09]
[1755361969750,2.93,188.08,187.99,3.09]
[1755361970049,2.93,188.06,188.01,3.01]
[1755361970253,2.93,188.04,188.01,3.01]
[1755361970447,4.25873007,188.03,188.01,3.01]
[1755361970649,2.93,188.02,187.96,3.01]
[1755361970850,2.93,188.07,187.94,0.92542116]
[1755361971054,2.93,188.05,187.95,3.01]
[1755361971254,2.93,188.03,187.95,3.01]
[1755361971457,5.56903382,188.02,187.95,3.01]
[1755361971654,2.93,188.0,187.95,3.01]
[1755361971848,2.93,188.01,187.95,3.01]
[1755361972057,2.93,188.06,187.95,3.01]
[1755361972349,2.93,188.04,187.95,3.01]
[1755361972652,1.32871997,188.03,187.95,3.01]
[1755361972854,2.93,188.04,187.95,3.01]
[1755361973055,1.32871983,188.03,187.99,5.3156]
[1755361973256,2.93,188.04,188.0,3.01]
[1755361973556,2.93,188.08,188.0,3.01]
[1755361973852,2.93,188.06,188.0,3.01]
[1755361974050,2.93,188.04,188.01,3.01]
[1755361974248,2.93,188.03,188.01,3.01]
[1755361974455,2.93,188.03,187.98,4.30932446]
[1755361974658,2.93,188.05,188.01,3.01]
[1755361974956,4.26966675,188.04,188.01,3.01]
[1755361975149,2.93,188.05,188.01,3.01]
[1755361975350,5.59940771,188.04,188.02,3.01]
[1755361975557,2.93,188.07,188.02,3.01]
[1755361975852,5.59936916,188.06,188.02,3.01]
[1755361976146,2.93,188.07,188.02,3.01]
[1755361976147,5.59936916,188.05,188.02,3.01]
[1755361976354,2.93,188.09,188.02,3.01]
[1755361976547,5.6012147,188.08,188.02,3.01]
[1755361976750,8.5312147,188.07,188.02,3.01]
[1755361977058,5.6012147,188.06,188.02,5.3149]
[1755361977259,5.6012975,188.05,188.03,3.01]
[1755361977450,4.27277929,188.04,188.03,3.01]
[1755361977649,8.2438,188.07,188.03,3.01]
[1755361977849,5.6034923,188.06,188.03,3.01]
[1755361978058,4.27505689,188.05,188.03,3.01]
[1755361978252,4.2770568,188.04,188.03,8.3247]
[1755361978956,7.3741159,188.14,188.04,3.01]
[1755361979248,1.32823342,188.13,188.08,3.01]
[1755361979452,1.32823342,188.12,188.07,4.30932446]
[1755361979656,1.32823342,188.11,188.08,3.01]
[1755361979853,2.93,188.13,188.08,3.01]
[1755361980054,1.32820421,188.12,188.1,3.01]
[1755361980255,2.93,188.19,188.12,3.01]
[1755361980450,1.3277352,188.18,188.12,3.01]
[1755361980650,2.93,188.16,188.12,3.01]
[1755361980854,2.93,188.19,188.12,3.01]
[1755361981055,1.3277505,188.18,188.12,3.01]
[1755361981257,1.3277505,188.17,188.12,3.01]
[1755361981559,2.93,188.15,188.13,3.01]
[1755361981759,2.93,188.16,188.12,3.01]
[1755361981949,2.93,188.2,188.12,3.01]
[1755361982256,1.32774498,188.19,188.12,3.01]
[1755361982555,1.32774498,188.18,188.16,3.01]
[1755361982753,1.32774498,188.17,188.16,8.321]
[1755361982954,2.93,188.2,188.16,3.01]
[1755361983258,2.93,188.2,188.17,5.3107]
[1755361983458,2.93,188.22,188.18,3.01]
[1755361983655,2.93,188.22,188.16,3.01]
[1755361983853,2.93,188.22,188.16,5.311]
[1755361984055,4.3626832,188.23,188.15,4.30932446]
[1755361984256,2.93,188.2,188.15,4.30932446]
[1755361984458,2.93,188.2,188.19,3.01]
[1755361984652,4.3626832,188.23,188.15,4.30932446]
[1755361984858,7.2926832,188.22,188.16,3.01]
[1755361985157,2.93,188.21,188.16,3.01]
[1755361985360,2.93,188.21,188.02,4.30932446]
[1755361985361,2.93,188.2,188.12,3.01]
[1755361985859,2.93,188.22,188.15,4.30932446]
[1755361986054,7.30663598,188.25,188.16,3.01]
[1755361986259,2.93,188.25,188.22,3.01]
[1755361986451,2.93,188.25,188.23,3.01]
[1755361986650,4.37663598,188.28,188.24,3.01]
[1755361986852,2.93,188.27,188.23,4.30932446]
[1755361987051,4.37663598,188.3,188.25,3.01]
[1755361987356,2.93,188.29,188.2,3.01]
[1755361987758,5.3084,188.26,188.2,3.01]
[1755361987959,2.93,188.25,188.21,3.01]
[1755361988260,4.37663598,188.31,188.19,4.30932446]
[1755361988455,8.84727436,188.3,188.19,4.30932446]
[1755361988660,2.93,188.29,188.2,3.01]
[1755361988858,5.308,188.27,188.2,3.01]
[1755361989068,2.93,188.26,188.2,3.01]
[1755361989563,2.93,188.26,188.22,5.3091]
[1755361989762,2.93,188.31,188.23,3.01]
[1755361990858,2.93,188.29,188.23,3.01]
[1755361991061,2.93,188.26,188.24,3.01]
[1755361991263,2.93,188.26,188.25,3.01]
[1755361991459,2.93,188.25,188.24,3.01]
[1755361992267,2.93,188.32,188.24,0.54]
[1755361992466,4.15994289,188.31,188.25,3.01]
[1755361992665,7.08994289,188.3,188.25,3.01]
[1755361992861,7.08994289,188.29,188.26,3.01]
[1755361993065,2.93,188.27,188.24,3.01]
[1755361993256,2.93,188.26,188.25,3.01]
[1755361993464,4.39117392,188.36,188.25,3.01]
[1755361993465,2.93,188.34,188.25,3.01]
[1755361993668,2.93,188.32,188.25,3.01]
[1755361993866,2.93,188.3,188.27,3.01]
[1755361994066,2.93,188.3,188.21,3.01]
[1755361994268,2.93,188.37,188.25,3.01]
[1755361994469,2.93,188.35,188.25,3.01]
[1755361994661,2.93,188.33,188.25,3.01]
[1755361994857,7.09124412,188.32,188.25,3.01]
[1755361995064,4.16124412,188.31,188.25,3.01]
[1755361995263,2.93,188.32,188.25,3.01]
[1755361995468,7.09372791,188.31,188.25,3.01]
[1755361995765,2.93,188.31,188.25,3.01]
[1755361995961,0.92436417,188.41,188.24,4.30932446]
[1755361995962,2.93,188.36,188.28,8.3176]
[1755361996164,4.16449036,188.35,188.28,3.01]
[1755361996362,2.93,188.33,188.29,3.01]
[1755361996564,2.93,188.31,188.25,3.01]
[1755361998069,2.93,188.31,188.25,8.3184]
[1755361998265,2.93,188.31,188.25,3.01]
[1755361998671,3.02,188.3,188.25,3.01]
[1755361999165,3.02,188.3,188.26,2.96]
[1755362000174,8.3271,188.3,188.26,2.96]
[1755362000371,3.02,188.28,188.26,2.96]
[1755362000575,4.39117392,188.36,188.2,2.96]
[1755362000775,3.02,188.27,188.21,8.2694]
[1755362000976,3.02,188.27,188.22,2.96]
[1755362001176,3.02,188.27,188.23,2.96]
[1755362001371,5.3078,188.28,188.22,5.3093]
[1755362001577,3.02,188.25,188.24,2.96]
[1755362001778,3.02,188.27,188.24,2.96]
[1755362001979,3.02,188.26,188.25,2.96]
[1755362002373,3.02,188.26,188.22,5.3093]
[1755362002680,3.02,188.35,188.22,2.96]
[1755362002981,3.02,188.29,188.22,2.96]
[1755362003472,5.3079,188.27,188.22,2.96]
[1755362003678,3.02,188.26,188.23,2.96]
[1755362003880,3.02,188.25,188.24,2.96]
[1755362007680,10.6095,188.39,188.24,2.96]
[1755362007681,3.02,188.36,188.24,2.96]
[1755362007882,3.02,188.34,188.24,2.96]
[1755362008180,3.02,188.31,188.27,2.96]
[1755362008381,3.02,188.31,188.28,2.96]
[1755362008575,5.3069,188.31,188.28,2.96]
[1755362008774,3.02,188.29,188.28,2.96]
[1755362009178,5.3066,188.32,188.25,4.30932446]
[1755362009380,3.02,188.3,188.29,2.96]
[1755362011684,3.02,188.3,188.25,4.30932446]
[1755362011880,3.02,188.29,188.25,4.30932446]
[1755362012083,3.02,188.38,188.26,2.96]
[1755362012287,3.02,188.36,188.26,2.96]
[1755362012582,3.02,188.34,188.26,2.96]
[1755362014189,3.02,188.34,188.29,4.30932446]
[1755362014485,3.02,188.36,188.3,2.96]
[1755362014785,5.3052,188.37,188.32,5.3063]
[1755362014982,3.02,188.35,188.33,2.96]
[1755362015280,3.02,188.35,188.34,2.96]
[1755362015789,3.02,188.33,188.32,2.96]
[1755362016481,3.02,188.35,188.29,4.30932446]
[1755362016686,3.02,188.35,188.33,2.96]
[1755362016888,3.02,188.35,188.34,2.96]
[1755362017389,3.02,188.37,188.34,8.2659]
[1755362017585,3.02,188.36,188.29,4.30932446]
[1755362017786,3.02,188.36,188.3,2.96]
[1755362017983,5.3062,188.34,188.3,2.96]
[1755362018383,3.02,188.32,188.31,2.96]
[1755362020588,7.41117392,188.37,188.26,2.96]
[1755362020787,3.02,188.35,188.26,2.96]
[1755362020988,3.02,188.33,188.26,5.308]
[1755362021192,2.53212087,188.38,188.26,5.308]
[1755362021193,4.16044135,188.32,188.26,5.308]
[1755362021394,4.16044135,188.31,188.28,2.96]
[1755362021586,3.02,188.3,188.26,5.308]
[1755362021894,3.02,188.3,188.29,2.96]
[1755362023290,3.02,188.34,188.29,2.96]
[1755362023491,4.17628497,188.33,188.32,2.96]
[1755362024088,3.02,188.37,188.32,2.96]
[1755362024586,3.02,188.37,188.34,5.3059]
[1755362024890,3.02,188.37,188.36,2.96]
[1755362025293,3.02,188.42,188.36,2.96]
[1755362025488,3.02,188.4,188.32,2.96]
[1755362025689,3.02,188.38,188.32,2.96]
[1755362025888,5.3059,188.35,188.32,2.96]
[1755362026089,3.02,188.34,188.27,48.29290149]
[1755362026286,3.02,188.34,188.28,2.96]
[1755362026482,5.3062,188.34,188.29,5.3073]
[1755362026793,3.02,188.33,188.28,2.96]
[1755362027091,4.39117392,188.42,188.27,4.29290149]
[1755362027092,5.3056,188.36,188.3,5.3069]
[1755362027286,3.02,188.34,188.31,2.96]
[1755362027491,3.02,188.34,188.27,4.29290149]